Cogmind - Beta 17 @@@ ROGUE MODE // 2026.06.30 @ 01:22:16 Player: star Result: Destroyed by P-70 Sage with Tesla Rifle Performance ------------- Evolutions (6) 3000 Regions Visited (18) 3600 Robots Destroyed (86) 430 Value Destroyed (3238) 3238 Prototype IDs (44) 880 Alien Tech Used (0) 0 Bonus (1895) 1895 TOTAL SCORE: 13043 Bonus ------- Follower Combat Kills 312 Aligned with FarCom 300 Met Data Miner 300 Met Warlord at Base 500 MAIN.C Attacked Warlord 500 Warlord Defense Kills 100 Friendly Fire -117 Cogmind --------- Core Integrity 0/1150 Matter 300/300 Energy 145/150 System Corruption 15% Temperature Cool (0) Movement Hovering (70) Location -4/Factory Parts ------- > --- POWER (2) -------- Micro Fission Core > --- PROPULSION (6) --- Improved Gyrokinetic Inverter > --- UTILITY (8) ------ Advanced Signal Interpreter Improved Target Analyzer Advanced Target Analyzer > --- WEAPON (3) ------- Heavy Pick > --- INVENTORY (5) ---- Flexi-carbon Leg Myomer Leg Advanced ECM Suite Advanced Trap Extractor (5/8 Dirty Bomb) Micro-nuke Launcher Peak State ------------ > --- POWER ------------ Vortex Chain Reactor > --- PROPULSION ------- Combat Gravmag System Combat Gravmag System Improved Gyrokinetic Inverter Improved Linear Gravjet Cooled Antigrav System Cooled Antigrav System > --- UTILITY ---------- Medium Storage Unit Advanced Sensor Array Advanced Signal Interpreter Advanced Target Analyzer Experimental Armor Integrity Analyzer Improved Actuator Array Experimental Cloaking Device Improved Thermal Defense Suite > --- WEAPON ----------- Makeshift Hammer Power Sword Power Sword > --- INVENTORY -------- Micro Fission Core Linear Gravjet Electron Diverter Microactuators Improved Reaction Control System Makeshift Kinetic Plating Advanced Trap Extractor Micro-nuke Launcher Power Sword Lance [Rating: 133] Favorites ----------- Power Improved Deuterium Engine Engine Improved Deuterium Engine Power Core Micro Fission Core Reactor Vortex Chain Reactor Propulsion Xenon Bombardment Thruster Treads Light Treads Leg Myomer Leg Hover Unit Cooled Antigrav System Flight Unit Xenon Bombardment Thruster Utility Advanced Signal Interpreter Device Microactuators Storage Medium Storage Unit Processor Advanced Signal Interpreter Protection Hardened Medium Armor Plating Weapon Katana Energy Gun Small Laser Ballistic Gun Shotgun Ballistic Cannon Magnetic Acceleration Cannon Launcher Heavy Rocket Launcher Impact Weapon Makeshift Hammer Slashing Weapon Katana Piercing Weapon Lance Build | -11 -10 -9 -9 -9 -8 -8 -7 -6 -6 -6 -6 -5 -5 -5 -5 -5 -4 -4 ------- Run | Yrd Mat Mat Min Exi Min Mat Fac Fac Low Low Dat Pro Fac Upp Upp War Pro Fac Slots Evolved 12 | . . 2 . . . 2 2 2 . . . . 2 . . . . 2 Power 1 | . . . . . . . . . . . . . . . . . . 1 Propulsion 4 | . . 2 . . . 1 1 . . . . . . . . . . . Utility 6 | . . . . . . 1 1 2 . . . . 2 . . . . . Weapon 1 | . . . . . . . . . . . . . . . . . . 1 Parts Attached 118 | 7 2 14 1 3 1 1 1 10 2 1 . 5 12 5 7 16 1 29 Power 12 | 1 . 2 . . . . . 1 1 . . . . 1 . 2 . 4 Engine 5 | 1 . 2 . . . . . 1 1 . . . . . . . . . Core 4 | . . . . . . . . . . . . . . 1 . 2 . 1 Reactor 3 | . . . . . . . . . . . . . . . . . . 3 Propulsion 38 | 2 . 9 . 1 . . . 2 . . . 1 2 . 3 5 1 12 Treads 2 | . . 1 . . . . . . . . . . . . 1 . . . Leg 6 | 2 . . . . . . . . . . . . . . . . . 4 Wheel . | . . . . . . . . . . . . . . . . . . . Hover 17 | . . 5 . . . . . . . . . . . . . 3 1 8 Flight 13 | . . 3 . 1 . . . 2 . . . 1 2 . 2 2 . . Utility 45 | 1 2 1 . 2 . 1 1 5 . 1 . 4 8 3 2 7 . 7 Device 28 | . . 1 . 2 . . 1 2 . . . 4 5 3 . 5 . 5 Storage 3 | 1 2 . . . . . . . . . . . . . . . . . Processor 7 | . . . . . . 1 . 1 . . . . 1 . 2 1 . 1 Hackware . | . . . . . . . . . . . . . . . . . . . Protection 7 | . . . . . . . . 2 . 1 . . 2 . . 1 . 1 Artifact . | . . . . . . . . . . . . . . . . . . . Weapon 23 | 3 . 2 1 . 1 . . 2 1 . . . 2 1 2 2 . 6 Energy Gun 5 | 3 . 2 . . . . . . . . . . . . . . . . Energy Cannon . | . . . . . . . . . . . . . . . . . . . Ballistic Gun 1 | . . . 1 . . . . . . . . . . . . . . . Ballistic Cannon 1 | . . . . . . . . 1 . . . . . . . . . . Launcher 4 | . . . . . . . . 1 . . . . . 1 . . . 2 Special Weapon . | . . . . . . . . . . . . . . . . . . . Impact Weapon 2 | . . . . . . . . . . . . . . . . 2 . . Slashing Weapon 8 | . . . . . 1 . . . . . . . 2 . 2 . . 3 Piercing Weapon 2 | . . . . . . . . . 1 . . . . . . . . 1 Special Melee Weapon . | . . . . . . . . . . . . . . . . . . . Unidentified Prototypes 11 | . . 1 . 1 . . . 1 . . . . 1 . . 4 . 3 Corrupted Parts 5 | . . . . . . . . . . . . 1 . . . 2 1 1 System Corruption 24 | . . . . . . . . . . . . 10 . . . 8 4 2 Parts Lost 66 | . . 9 . . . . . . 2 . . 1 8 6 12 . 1 27 Power 6 | . . . . . . . . . . . . . 1 1 1 . . 3 Propulsion 21 | . . 6 . . . . . . . . . . 1 . 3 . 1 10 Utility 27 | . . 1 . . . . . . 2 . . 1 5 4 4 . . 10 Weapon 12 | . . 2 . . . . . . . . . . 1 1 4 . . 4 Highest Loss Streak 9 | . . 6 . . . . . . 1 . . 1 3 5 6 . 1 9 To Critical Strikes 2 | . . . . . . . . . . . . . 1 . . . . 1 Average Backups 7 | 1 7 7 10 9 9 8 9 8 7 9 10 9 8 5 4 5 8 6 Power . | . 1 1 2 1 . . . . . 1 1 1 1 . . . 2 . Propulsion . | . 3 . . . 1 1 1 . 1 1 1 1 . . . . 1 1 Utility 4 | . 1 3 6 5 6 5 6 5 4 6 7 6 5 2 2 3 4 2 Weapon 1 | . 1 1 2 2 2 2 2 2 1 1 1 1 1 1 2 1 1 1 Tool/Special . | . . . . . . . . . . . . . . . . . . . Unused Backups 13 | . . . . . . . . 4 2 . . 2 2 1 . 1 . 1 Power 2 | . . . . . . . . . . . . 1 1 . . . . . Propulsion 1 | . . . . . . . . . . . . . 1 . . . . . Utility 7 | . . . . . . . . 4 . . . 1 . 1 . . . 1 Weapon 3 | . . . . . . . . . 2 . . . . . . 1 . . Tool/Special . | . . . . . . . . . . . . . . . . . . . Average Slot Usage (%) 68 | . 85 77 58 69 66 61 55 70 79 73 73 75 71 58 43 66 99 72 Engine 3 | . 14 9 . 1 11 9 7 6 6 6 6 6 4 3 . . . . Core 1 | . . . . . . . . . . . . . . 1 3 4 5 . Leg 1 | . 28 . . . . . . . . . . . . . . . . 2 Hover 5 | . . 22 . . . . . . . . . . . . . 15 22 20 Flight 8 | . . 7 22 19 11 9 7 13 20 20 20 20 13 . . 1 11 . Device 11 | . . . . 5 11 9 9 11 18 13 13 15 15 17 7 9 11 11 Storage 5 | . 14 16 11 11 11 9 7 6 6 6 6 6 5 5 3 . 5 2 Processor 10 | . . . . . . 7 7 12 6 6 6 6 10 11 15 20 23 15 Protection 3 | . . . . . . . . 5 6 6 6 5 6 4 1 3 5 1 Energy Gun 2 | . 28 18 11 11 3 . . . . . . . . . . . . . Ballistic Gun 1 | . . . 3 11 11 9 7 3 . . . . . . . . . . Impact Weapon 1 | . . . . . . . . . . . . . . . . 5 11 3 Slashing Weapon 5 | . . . . . 7 9 7 6 6 6 6 6 7 8 8 . . 6 Piercing Weapon 1 | . . . . . . . . . . 6 6 5 2 . . 2 . 1 Peak Build Rating 133 | 6 7 14 9 44 46 51 54 77 77 81 81 85 92 55 43 106 110 133 Average Rating 61 | 4 6 9 7 16 45 50 51 66 75 80 81 80 80 43 33 64 107 98 On Entrance 49 | . 6 7 7 9 44 46 51 51 77 74 81 81 80 55 39 24 106 109 Avg Prop Armor Cover (%) 6 | . . 14 8 6 . . . . . . . . . . 11 3 5 7 Naked Turns . | . . . . . . . . . . . . . . . . . . . Heaviest Build 70 | 13 28 29 14 18 20 20 21 36 42 43 43 48 46 37 36 36 36 70 Greatest Support 95 | 20 20 24 20 50 50 50 50 62 62 62 62 63 63 35 12 48 51 95 Greatest Overweight (x) 10 | 1 1 8 . . . . . . . . . . 10 3 4 5 . 1 Average Overweight (x) . | . . . . . . . . . . . . . . 1 . . . . Largest Inventory Capacity 15 | 8 15 10 10 10 10 10 10 10 10 10 10 10 10 10 10 10 10 10 Average Capacity 9 | 7 11 10 10 10 10 10 10 10 10 10 10 10 10 10 8 5 10 7 Most Carried 10 | 2 10 10 10 10 10 10 10 10 10 10 10 10 10 7 5 9 9 10 Average Carried 7 | 1 7 7 10 9 10 9 10 9 8 9 10 9 9 5 4 5 9 6 Final Capacity 10 | 8 10 10 10 10 10 10 10 10 10 10 10 10 10 10 5 10 10 5 Final Carried 10 | 2 10 10 10 10 10 10 10 10 10 10 10 9 7 4 4 9 9 5 Class Distribution -------------------- 36% | Mutant 26% | Trapper-Gladiator 12% | Trapper-Mutant 6% | Commander-Gladiator 5% | Commander-Mutant 4% | Gladiator 3% | Scout Dominant Class ---------------- Mutant | -10/Materials Mutant | -9/Materials Mutant | -9/Mines Mutant | -9/Exiles Mutant | -8/Mines Mutant | -8/Materials Mutant | -7/Factory Scout | -6/Factory Mutant | -6/Lower Caves Mutant | -6/Lower Caves Mutant | -6/Data Miner Derelict-Gladiator | -5/Proximity Caves Trapper-Gladiator | -5/Factory Trapper-Gladiator | -5/Upper Caves Trapper-Gladiator | -5/Upper Caves Commander-Gladiator | -5/Warlord Trapper-Gladiator | -4/Proximity Caves Trapper-Gladiator | -4/Factory Resources | -11 -10 -9 -9 -9 -8 -8 -7 -6 -6 -6 -6 -5 -5 -5 -5 -5 -4 -4 ----------- Run | Yrd Mat Mat Min Exi Min Mat Fac Fac Low Low Dat Pro Fac Upp Upp War Pro Fac Matter Collected 2248 | 197 35 82 93 . 68 10 . 77 77 13 . 335 173 365 112 180 35 396 Remotely . | . . . . . . . . . . . . . . . . . . . Salvage Created 3332 | . 25 327 . . 110 20 . 111 133 73 . 586 443 80 435 48 62 879 Parts 165 | . 4 14 . . 7 . . 7 3 6 . 30 23 7 22 1 2 39 Haulers Intercepted 2 | . . . . . . . . . . . . . 1 . . . . 1 Recyclers Shooed 1 | . . . . . . . . . . . . . . . . . . 1 Parts Field Recycled . | . . . . . . . . . . . . . . . . . . . Retrieved Matter . | . . . . . . . . . . . . . . . . . . . Parts Self-Destructed 57 | . . . . . . . . . 2 4 . 25 . 9 17 . . . Prevented 2 | . . . . . . . . . . . . 1 . . . . 1 . Parts Restored . | . . . . . . . . . . . . . . . . . . . Kills | -11 -10 -9 -9 -9 -8 -8 -7 -6 -6 -6 -6 -5 -5 -5 -5 -5 -4 -4 ------- Run | Yrd Mat Mat Min Exi Min Mat Fac Fac Low Low Dat Pro Fac Upp Upp War Pro Fac Combat Hostiles Destroyed 68 | . 2 9 . . 1 . . 1 . 3 . 15 7 5 10 1 1 13 Melee 29 | . . . . . 1 . . 1 . 3 . 5 1 1 10 . . 7 Guns 8 | . 2 6 . . . . . . . . . . . . . . . . AOE 29 | . . 3 . . . . . . . . . 10 6 4 . . . 6 Classes Destroyed 16 | . 1 4 . . 2 1 . 1 . . . 2 2 . 1 . . 2 Worker 5 | . . . . . . 1 . . . . . . 3 . . . . 1 Builder 3 | . . . . . . . . . . . . . 3 . . . . . Hauler 2 | . . . . . . . . . . . . . 1 . . . . 1 Recycler 3 | . . . . . 1 . . . . . . . 1 . . . . 1 Minesweeper 1 | . . . . . . . . . . . . 1 . . . . . . Mechanic 1 | . . . . . . . . . . . . . . . . . . 1 Operator 1 | . . 1 . . . . . . . . . . . . . . . . Watcher 2 | . . . . . . . . 1 . . . . . . . . . 1 Swarmer 32 | . 2 3 . . . . . . . 3 . 4 4 3 8 . . 5 Grunt 11 | . . 4 . . . . . . . . . 6 . . . 1 . . Brawler 2 | . . 1 . . . . . . . . . 1 . . . . . . Duelist 1 | . . . . . . . . . . . . . . . . . . 1 Sentry 4 | . . 1 . . . . . 1 . . . . 1 . . . . 1 Hunter 7 | . . . . . 1 . . . . . . 3 . . . . . 3 Programmer 11 | . . . . . . . . . . . . 1 2 2 2 . 1 3 Packrat 1 | . . . . . . . . . 1 . . . . . . . . . Samaritan 1 | . . . . . . . . . . . . . . . 1 . . . Best Kill Streak 10 | . 2 10 . . 1 1 . 1 . 3 . 4 8 2 4 1 1 5 Combat Bots Only 6 | . 2 5 . . 1 . . 1 . 3 . 4 6 2 4 1 1 5 Max Kills in Single Turn 7 | . 1 2 . . 1 1 . 1 1 1 . 4 7 1 1 1 1 2 Gunslinging . | . . . . . . . . . . . . . . . . . . . Exploded 5 | . . 1 . . . . . . . . . 4 5 1 . . . 2 Melee 1 | . . . . . 1 . . 1 . 1 . 1 1 1 1 . . 1 Uniques/NPCs Destroyed . | . . . . . . . . . . . . . . . . . . . Combat | -11 -10 -9 -9 -9 -8 -8 -7 -6 -6 -6 -6 -5 -5 -5 -5 -5 -4 -4 -------- Run | Yrd Mat Mat Min Exi Min Mat Fac Fac Low Low Dat Pro Fac Upp Upp War Pro Fac Hostile Shots Fired 699 | . 8 91 . . 6 . . 51 12 33 . 61 43 33 73 32 8 248 Missed 248 | . 3 24 . . 4 . . 30 5 18 . 25 18 6 15 18 2 80 Hits 451 | . 5 67 . . 2 . . 21 7 15 . 36 25 27 58 14 6 168 Melee 17 | . . 1 . . . . . . 2 . . . . 8 . . . 6 Projectile 434 | . 5 66 . . 2 . . 21 5 15 . 36 25 19 58 14 6 162 AOE 6 | . . . . . . . . 2 . . . . . 1 . 1 . 2 Critical Strikes 24 | . . 1 . . . . . . . . . 1 1 1 6 1 . 13 Actively Blocked 2 | . . . . . . . . . . . . . . . . . . 2 Damage Taken 8744 | . 43 809 . . 33 . . 169 131 180 . 621 1168 560 997 368 119 3546 Core 2116 | . 7 170 . . . . . 21 . 21 . 30 150 80 359 103 22 1153 Absorbed by Shields 75 | . . . . . . . . . . . . . . . . . . 75 Redirected to Shielding 68 | . . . . . . . . . . . . . . . . . . 68 Ignored by Resistances 66 | . . . . . . . . . . . . 38 . . . 28 . . Regen/Repaired (Parts) 25 | . . . . . . . . . . . . . . . . 25 . . Core Remaining (%) 81 | 100 97 . . . 57 100 100 . . . . 91 . . . . 28 . Volleys Fired 43 | . 2 18 . . . . . . 2 . . 7 3 8 . . . 3 Largest 2 | . 2 2 . . . . . . 1 . . 1 1 1 . . . 1 Hottest 90 | . 90 90 . . . . . . 44 . . 45 45 39 . . . 49 Shots Fired 60 | . 4 33 . . . . . . 2 . . 7 3 8 . . . 3 Gun 37 | . 4 33 . . . . . . . . . . . . . . . . Cannon 2 | . . . . . . . . . 2 . . . . . . . . . Launcher 21 | . . . . . . . . . . . . 7 3 8 . . . 3 Special . | . . . . . . . . . . . . . . . . . . . Kinetic 2 | . . . . . . . . . 2 . . . . . . . . . Thermal 12 | . 4 8 . . . . . . . . . . . . . . . . Explosive 21 | . . . . . . . . . . . . 7 3 8 . . . 3 Electromagnetic 25 | . . 25 . . . . . . . . . . . . . . . . Robot Hit Streak 8 | . 2 8 . . . . . . 5 . . 3 4 2 . . . 3 Robot Miss Streak 7 | . 1 7 . . . . . . . . . 3 2 1 . . . 1 Penetration Max . | . . . . . . . . . . . . . . . . . . . Secondary Targets 2 | . . 2 . . . . . . . . . . . . . . . . Max Gunslinging Chain 1 | . . 1 . . . . . . . . . . . . . . . . Shots Hit Robots 181 | . 2 22 . . 2 2 . 8 3 3 . 22 17 12 28 1 6 53 Core Hits 145 | . 2 19 . . 2 1 . 3 2 3 . 43 26 6 14 . 1 23 Critical Kills . | . . . . . . . . . . . . . . . . . . . Critical Parts Destroyed 5 | . . . . . . . . . . . . . . . . . 3 2 Critical Strikes 19 | . . . . . . . . . . . . 1 1 3 2 . 3 9 Smash 5 | . . . . . . . . . . . . . . . . . 3 2 Sever 12 | . . . . . . . . . . . . . 1 3 2 . . 6 Impale 2 | . . . . . . . . . . . . 1 . . . . . 1 Melee Attacks 306 | . . . . . 3 5 . 11 12 5 . 35 55 14 63 4 10 89 Impact 22 | . . . . . . . . . . . . . . . . 4 10 8 Slashing 219 | . . . . . 3 5 . 11 11 1 . 4 49 14 62 . . 59 Piercing 65 | . . . . . . . . . 1 4 . 31 6 . 1 . . 22 Sneak Attacks 19 | . . . . . 1 2 . . . . . 1 7 . 1 . . 7 Combat Hostiles 1 | . . . . . . . . . . . . . . . . . . 1 Follow-up Attacks 27 | . . . . . . . . . . 1 . 2 1 2 4 1 2 14 Damage Inflicted 10025 | . 22 564 . . 115 157 . 308 136 119 . 1867 1663 714 989 46 316 3009 Guns 329 | . 22 307 . . . . . . . . . . . . . . . . Cannons 35 | . . . . . . . . . 35 . . . . . . . . . Explosions 3444 | . . 257 . . . . . . . . . 1114 863 453 . . . 757 Melee 6217 | . . . . . 115 157 . 308 101 119 . 753 800 261 989 46 316 2252 Ramming . | . . . . . . . . . . . . . . . . . . . Kinetic 35 | . . . . . . . . . 35 . . . . . . . . . Thermal 349 | . 22 327 . . . . . . . . . . . . . . . . Explosive 3187 | . . . . . . . . . . . . 1114 863 453 . . . 757 Electromagnetic 237 | . . 237 . . . . . . . . . . . . . . . . Impact 531 | . . . . . . . . . . . . . . . . 46 316 169 Slashing 4153 | . . . . . 115 157 . 308 101 32 . 68 580 261 952 . . 1579 Piercing 1533 | . . . . . . . . . . 87 . 685 220 . 37 . . 504 Highest Corruption 26 | . . . . . . . . . . . . 11 13 18 26 26 14 15 Average Corruption 10 | . . . . . . . . . . . . 4 9 14 22 12 10 2 Corruption Purged . | . . . . . . . . . . . . . . . . . . . Corruption Blocked . | . . . . . . . . . . . . . . . . . . . Effects 86 | . . . . . . . . . . . . 7 13 23 24 3 4 12 Message Errors 20 | . . . . . . . . . . . . 2 4 5 4 1 2 2 Matter Fused 28 | . . . . . . . . . . . . . 4 10 7 2 1 4 Heat Flow Errors 10 | . . . . . . . . . . . . 1 1 2 3 . 1 2 Energy Discharges 17 | . . . . . . . . . . . . 3 4 5 4 . . 1 Parts Rejected 1 | . . . . . . . . . . . . . . . . . . 1 Data Loss (minor) 6 | . . . . . . . . . . . . 1 . 1 3 . . 1 Data Loss (major) 3 | . . . . . . . . . . . . . . . 2 . . 1 Alerts 1 | . . . . . . . . . . . . . . . 1 . . . Overload Shots . | . . . . . . . . . . . . . . . . . . . Overflow Damage 984 | . . 19 . . . 43 . . . . . 55 237 16 47 9 205 353 Projectiles . | . . . . . . . . . . . . . . . . . . . Explosions 185 | . . 19 . . . . . . . . . . 55 . . . . 111 Melee 799 | . . . . . . 43 . . . . . 55 182 16 47 9 205 242 Knockbacks 3 | . . . . . . . . . . . . . . . . . 3 . Impact 3 | . . . . . . . . . . . . . . . . . 3 . Kinetic . | . . . . . . . . . . . . . . . . . . . Secondary . | . . . . . . . . . . . . . . . . . . . Self-Inflicted Damage 512 | . . 79 . . . . . . . . . 76 221 112 . . . 24 Shots 20 | . . 2 . . . . . . . . . 4 9 4 . . . 1 Rammed . | . . . . . . . . . . . . . . . . . . . Targets Rammed . | . . . . . . . . . . . . . . . . . . . Kicked . | . . . . . . . . . . . . . . . . . . . Crushed . | . . . . . . . . . . . . . . . . . . . Highest Temperature 261 | . 60 261 . . . . . . 19 8 . 132 129 259 199 . 102 242 Average Temperature 75 | . 30 147 . . . . . . 9 4 . 36 73 117 95 . 59 49 Received Heat Transfer 495 | . . 249 . . . . . 42 12 12 . 45 27 12 . 60 . 36 Effects 1 | . . 1 . . . . . . . . . . . . . . . . Energy Bleed 1 | . . 1 . . . . . . . . . . . . . . . . Siege Activations . | . . . . . . . . . . . . . . . . . . . Martial Activations . | . . . . . . . . . . . . . . . . . . . Shielding Activations . | . . . . . . . . . . . . . . . . . . . Robots Disrupted . | . . . . . . . . . . . . . . . . . . . Combat Hostiles . | . . . . . . . . . . . . . . . . . . . Robots Corrupted 3 | . . . . . . . . . . . . . . . . 1 1 1 Combat Hostiles 2 | . . . . . . . . . . . . . . . . 1 1 . Parts Fried 3 | . . 2 . . . . . . . . . . . . . . . 1 Impact Corruptions 13 | . . . . . . . . . . . . . . . . 1 8 4 Robots Melted . | . . . . . . . . . . . . . . . . . . . Combat Hostiles . | . . . . . . . . . . . . . . . . . . . Parts Melted . | . . . . . . . . . . . . . . . . . . . Heat Transferred 598 | . 62 536 . . . . . . . . . . . . . . . . Parts Sabotaged . | . . . . . . . . . . . . . . . . . . . Parts Stolen 5 | . . . . . . . . . 2 . . . . 3 . . . . Parts Stripped . | . . . . . . . . . . . . . . . . . . . Power Chain Reactions 4 | . . 4 . . . . . . . . . . . . . . . . Alert | -11 -10 -9 -9 -9 -8 -8 -7 -6 -6 -6 -6 -5 -5 -5 -5 -5 -4 -4 ------- Run | Yrd Mat Mat Min Exi Min Mat Fac Fac Low Low Dat Pro Fac Upp Upp War Pro Fac Maximum Alert Level 1 | . . . . . . . . . . . . . 1 . . . . 1 Low Security (%) 92 | 100 100 100 100 . 100 100 100 100 . . . . 83 . . . . 89 Level 1 7 | . . . . . . . . . . . . . 16 . . . . 10 Level 2 . | . . . . . . . . . . . . . . . . . . . Level 3 . | . . . . . . . . . . . . . . . . . . . Level 4 . | . . . . . . . . . . . . . . . . . . . Level 5 . | . . . . . . . . . . . . . . . . . . . High Security . | . . . . . . . . . . . . . . . . . . . Max Security . | . . . . . . . . . . . . . . . . . . . Peak Influence 241 | . 45 181 58 . 30 12 . 18 . . . . 236 . . . . 241 Initial 58 | . . 5 58 . . 7 . . . . . . 48 . . . . . Average 47 | . 11 103 47 . . 1 . 2 . . . . 52 . . . . 81 Influence Increases 2684 | . 55 331 . . 35 18 . 55 20 85 . 375 453 110 240 289 35 583 Destroy 0b10 Robot/C 1536 | . 40 180 . . 20 . . 16 . 60 . 300 140 100 200 200 20 260 Destroy 0b10 Robot/NC 103 | . . 5 . . 5 4 . 4 5 . . 5 40 . . 5 5 25 Destroy Leader 256 | . . 40 . . 10 . . 10 . 10 . 40 32 10 40 . 10 54 Allied During Kill 69 | . . . . . . . . . . . . . . . . 69 . . Trap Triggered on 0b10 20 | . . . . . . . . . . . . . . . . . . 20 Disable Machine 117 | . . 15 . . . . . 12 . . . . 30 . . . . 60 Destroy Structure 229 | . . 16 . . . 2 . 1 . . . . 106 . . . . 104 Partial Spotted 54 | . . . . . . 12 . 12 . . . . 15 . . . . 15 Lose Combat Pursuer 300 | . 15 75 . . . . . . 15 15 . 30 90 . . 15 . 45 Influence Decreases 2637 | . 40 195 113 38 15 36 2 55 20 25 60 298 304 336 240 59 265 536 Entered New Map 559 | . . 10 93 38 . 13 2 . . . 60 . 29 84 . . 230 . Time Decay 1507 | . 40 95 20 . 15 23 . 55 20 25 . 278 228 192 176 39 35 266 Lost Part 502 | . . 90 . . . . . . . . . 10 28 40 64 . . 270 Lost Ally 69 | . . . . . . . . . . . . 10 19 20 . 20 . . Squads Dispatched 11 | . . 1 . . . 1 . 1 . . . . 3 . . . . 5 Investigation 1 | . . . . . . . . . . . . . . . . . . 1 Extermination 5 | . . . . . . . . 1 . . . . 2 . . . . 2 Reinforcement 5 | . . 1 . . . 1 . . . . . . 1 . . . . 2 Assault . | . . . . . . . . . . . . . . . . . . . Garrison . | . . . . . . . . . . . . . . . . . . . Intercept . | . . . . . . . . . . . . . . . . . . . Searches Triggered . | . . . . . . . . . . . . . . . . . . . Data Miner Redirects 1 | . . . . . . . . . . . . . . . . . . 1 Construction Impeded 1 | . . . . . . . . . . . . . 1 . . . . . Haulers Reinforced . | . . . . . . . . . . . . . . . . . . . Active Scanning Responses . | . . . . . . . . . . . . . . . . . . . Cargo Convoy Interrupts . | . . . . . . . . . . . . . . . . . . . Stealth | -11 -10 -9 -9 -9 -8 -8 -7 -6 -6 -6 -6 -5 -5 -5 -5 -5 -4 -4 --------- Run | Yrd Mat Mat Min Exi Min Mat Fac Fac Low Low Dat Pro Fac Upp Upp War Pro Fac Distress Signals 6 | . 1 3 . . . 2 . . . . . . . . . . . . Communications Jammed . | . . . . . . . . . . . . . . . . . . . Distress Signals . | . . . . . . . . . . . . . . . . . . . Times Spotted 155 | . 4 27 . . 1 4 . 2 4 4 . 17 15 10 10 36 1 20 Peak Tracking Total 11 | . 3 11 . . 1 5 . 1 1 3 . 4 7 3 4 10 1 7 Tactical Retreats 14 | . 1 2 . . . . . . 1 1 . 2 4 . . 1 . 2 Traps | -11 -10 -9 -9 -9 -8 -8 -7 -6 -6 -6 -6 -5 -5 -5 -5 -5 -4 -4 ------- Run | Yrd Mat Mat Min Exi Min Mat Fac Fac Low Low Dat Pro Fac Upp Upp War Pro Fac Traps Triggered 4 | . . . . . . . . . . . . . 2 . . . . 2 Indirectly . | . . . . . . . . . . . . . . . . . . . Trap Hack Attempts . | . . . . . . . . . . . . . . . . . . . Triggered . | . . . . . . . . . . . . . . . . . . . Disarmed . | . . . . . . . . . . . . . . . . . . . Reprogrammed . | . . . . . . . . . . . . . . . . . . . Reused 2 | . . . . . . . . . . . . . . . . . . 2 Traps Extracted . | . . . . . . . . . . . . . . . . . . . Installed 3 | . . . . . . . . . . . . . . . . . . 3 Triggered 2 | . . . . . . . . . . . . . . . . . . 2 Most Traps Carried 8 | . . . . . . . . . . . . 8 8 8 8 8 8 8 Machines | -11 -10 -9 -9 -9 -8 -8 -7 -6 -6 -6 -6 -5 -5 -5 -5 -5 -4 -4 ---------- Run | Yrd Mat Mat Min Exi Min Mat Fac Fac Low Low Dat Pro Fac Upp Upp War Pro Fac Machines Disabled 9 | . . 1 . . . . . 1 . . . . 2 . 1 . . 4 Max in Single Turn 1 | . . 1 . . . . . 1 . . . . 1 . 1 . . 1 Machines Repaired . | . . . . . . . . . . . . . . . . . . . Machines Dismantled . | . . . . . . . . . . . . . . . . . . . Machines Sabotaged . | . . . . . . . . . . . . . . . . . . . Overloaded Fab Kills . | . . . . . . . . . . . . . . . . . . . Hacking | -11 -10 -9 -9 -9 -8 -8 -7 -6 -6 -6 -6 -5 -5 -5 -5 -5 -4 -4 --------- Run | Yrd Mat Mat Min Exi Min Mat Fac Fac Low Low Dat Pro Fac Upp Upp War Pro Fac Machines Accessed 20 | . . . . 2 . . . . . . 4 . . . 2 9 1 2 Terminals 1 | . . . . . . . . . . . . . . . . . 1 . Fabricators 2 | . . . . . . . . . . . . . . . . . . 2 Repair Stations . | . . . . . . . . . . . . . . . . . . . Recycling Units . | . . . . . . . . . . . . . . . . . . . Scanalyzers . | . . . . . . . . . . . . . . . . . . . Garrison Access . | . . . . . . . . . . . . . . . . . . . Total Hacks 57 | . . . . 5 . . . . . . 30 . . . 3 13 1 5 Successful 55 | . . . . 5 . . . . . . 30 . . . 3 13 1 3 Failed 2 | . . . . . . . . . . . . . . . . . . 2 Catastrophic 1 | . . . . . . . . . . . . . . . . . . 1 Database Lockouts . | . . . . . . . . . . . . . . . . . . . Manual 3 | . . . . 1 . . . . . . . . . . . 2 . . Terminals 1 | . . . . . . . . . . . . . . . . . 1 . Fabricators 5 | . . . . . . . . . . . . . . . . . . 5 Repair Stations . | . . . . . . . . . . . . . . . . . . . Recycling Units . | . . . . . . . . . . . . . . . . . . . Scanalyzers . | . . . . . . . . . . . . . . . . . . . Garrison Access . | . . . . . . . . . . . . . . . . . . . Terminal Hacks 52 | . . . . 5 . . . . . . 30 . . . 3 13 1 . Record 30 | . . . . 4 . . . . . . 11 . . . 2 12 1 . Part Schematic 8 | . . . . . . . . . . . 8 . . . . . . . Robot Schematic 8 | . . . . . . . . . . . 8 . . . . . . . Prototype ID Bank 3 | . . . . . . . . . . . 3 . . . . . . . Open Door 2 | . . . . . . . . . . . . . . . 1 1 . . Proto ID Catalog 1 | . . . . 1 . . . . . . . . . . . . . . Fabricator Hacks 3 | . . . . . . . . . . . . . . . . . . 3 Network Status 1 | . . . . . . . . . . . . . . . . . . 1 Load Schematic 1 | . . . . . . . . . . . . . . . . . . 1 Build 1 | . . . . . . . . . . . . . . . . . . 1 Repair Station Hacks . | . . . . . . . . . . . . . . . . . . . Recycling Unit Hacks . | . . . . . . . . . . . . . . . . . . . Scanalyzer . | . . . . . . . . . . . . . . . . . . . Garrison Access Hacks . | . . . . . . . . . . . . . . . . . . . Unauthorized Hacks . | . . . . . . . . . . . . . . . . . . . Terminals . | . . . . . . . . . . . . . . . . . . . Fabricators . | . . . . . . . . . . . . . . . . . . . Repair Stations . | . . . . . . . . . . . . . . . . . . . Recycling Units . | . . . . . . . . . . . . . . . . . . . Scanalyzers . | . . . . . . . . . . . . . . . . . . . Garrison Access . | . . . . . . . . . . . . . . . . . . . Data Cores Recovered . | . . . . . . . . . . . . . . . . . . . Used . | . . . . . . . . . . . . . . . . . . . Hacking Detections 2 | . . . . . . . . . . . . . . . . . 1 1 Full Trace Events 1 | . . . . . . . . . . . . . . . . . . 1 Feedback Events . | . . . . . . . . . . . . . . . . . . . Feedback Blocked . | . . . . . . . . . . . . . . . . . . . Robot Schematics Acquired 8 | . . . . . . . . . . . 8 . . . . . . . Robots Built . | . . . . . . . . . . . . . . . . . . . Authchips . | . . . . . . . . . . . . . . . . . . . Time . | . . . . . . . . . . . . . . . . . . . Total Robot Build Rating . | . . . . . . . . . . . . . . . . . . . Part Schematics Acquired 8 | . . . . . . . . . . . 8 . . . . . . . Parts Built 2 | . . . . . . . . . . . . . . . . . . 2 Authchips . | . . . . . . . . . . . . . . . . . . . Time 58 | . . . . . . . . . . . . . . . . . . 58 Total Part Build Rating 14 | . . . . . . . . . . . . . . . . . . 14 Part Studies Acquired . | . . . . . . . . . . . . . . . . . . . Parts Repaired . | . . . . . . . . . . . . . . . . . . . Time . | . . . . . . . . . . . . . . . . . . . Parts Recycled . | . . . . . . . . . . . . . . . . . . . Recycled Matter . | . . . . . . . . . . . . . . . . . . . Retrieved Matter . | . . . . . . . . . . . . . . . . . . . Retrieved Components . | . . . . . . . . . . . . . . . . . . . Parts Scanalyzed . | . . . . . . . . . . . . . . . . . . . Part Schematics Acquired . | . . . . . . . . . . . . . . . . . . . Parts Damaged . | . . . . . . . . . . . . . . . . . . . Bothacking | -11 -10 -9 -9 -9 -8 -8 -7 -6 -6 -6 -6 -5 -5 -5 -5 -5 -4 -4 ------------ Run | Yrd Mat Mat Min Exi Min Mat Fac Fac Low Low Dat Pro Fac Upp Upp War Pro Fac Used RIF Installer . | . . . . . . . . . . . . . . . . . . . Robots Hacked . | . . . . . . . . . . . . . . . . . . . Non-combat . | . . . . . . . . . . . . . . . . . . . Combat . | . . . . . . . . . . . . . . . . . . . Robot Hacks Applied . | . . . . . . . . . . . . . . . . . . . Relay Couplers Released . | . . . . . . . . . . . . . . . . . . . Fabnet Peak Effective % . | . . . . . . . . . . . . . . . . . . . Robots Rewired 6 | . . . . . . . . . . . . . 1 . . 5 . . Allies Hacked . | . . . . . . . . . . . . . . . . . . . Hacks Repelled . | . . . . . . . . . . . . . . . . . . . Allies | -11 -10 -9 -9 -9 -8 -8 -7 -6 -6 -6 -6 -5 -5 -5 -5 -5 -4 -4 -------- Run | Yrd Mat Mat Min Exi Min Mat Fac Fac Low Low Dat Pro Fac Upp Upp War Pro Fac Total Allies 6 | . . . . . . . . . . . . . 1 . . 5 . . Largest Group 5 | . . . . . . . . . . . . . 1 . . 5 . . Highest-Rated Group 263 | . . . . . . . . . . . . . 29 . . 263 . . Highest-Rated Ally 68 | . . . . . . . . . . . . . 29 . . 68 . . Total Orders 7 | . . . . . . . . . . . . 2 1 3 . 1 . . STAY 1 | . . . . . . . . . . . . . . . . 1 . . ROAM 2 | . . . . . . . . . . . . . 1 1 . . . . EXPLORE 4 | . . . . . . . . . . . . 2 . 2 . . . . Ally Attacks 46 | . . . . . . . . . . . . . 12 . . 34 . . Total Damage 2028 | . . . . . . . . . . . . . 116 . . 1912 . . Kills 10 | . . . . . . . . . . . . . . . . 10 . . Allies Corrupted . | . . . . . . . . . . . . . . . . . . . Allies Melted 1 | . . . . . . . . . . . . . 1 . . . . . Intel | -11 -10 -9 -9 -9 -8 -8 -7 -6 -6 -6 -6 -5 -5 -5 -5 -5 -4 -4 ------- Run | Yrd Mat Mat Min Exi Min Mat Fac Fac Low Low Dat Pro Fac Upp Upp War Pro Fac Active Infowar (turns) 5163 | . . . . . . . . 255 520 291 32 581 652 638 585 926 161 522 Sensors 2661 | . . . . . . . . 255 520 291 32 579 454 292 . . . 238 Decoding 3145 | . . . . . . . . . . . . . 649 638 585 926 161 186 Cloaking 1213 | . . . . . . . . 10 135 291 32 164 159 13 . 4 11 394 Robot Analysis Total . | . . . . . . . . . . . . . . . . . . . Derelict Logs Recovered 9 | . . . . . . . . . 3 . . 2 . 1 2 . 1 . Drone Launches 5 | . . . . . . . . . . . . 2 . 3 . . . . Drone Recoveries 2 | . . . . . . . . . . . . 1 . 1 . . . . Decoded 0b10 Intel 56 | . . . . . . . . . . . . . 44 . . . . 12 Items 56 | . . . . . . . . . . . . . 44 . . . . 12 Exploration | -11 -10 -9 -9 -9 -8 -8 -7 -6 -6 -6 -6 -5 -5 -5 -5 -5 -4 -4 ------------- Run | Yrd Mat Mat Min Exi Min Mat Fac Fac Low Low Dat Pro Fac Upp Upp War Pro Fac Turns Passed 6797 | 68 189 224 59 317 244 157 35 294 520 291 32 616 652 638 585 926 161 789 Spaces Moved 8373 | 46 124 166 36 264 469 188 64 501 929 633 86 1101 989 319 482 913 254 809 Core 894 | 8 . 2 . . . . . . . . . . 1 318 409 154 . 2 Treads 205 | . . 11 36 158 . . . . . . . . . . . . . . Legs 204 | 38 124 . . . . . . . . . . . . . . . . 42 Wheels . | . . . . . . . . . . . . . . . . . . . Hover 1888 | . . 110 . . . . . . . . . . . . . 759 254 765 Flight 5182 | . . 43 . 106 469 188 64 501 929 633 86 1101 988 1 73 . . . Fastest Speed 32 | 50 120 48 160 50 50 50 50 37 37 37 37 37 37 37 32 50 48 37 Average Speed 59 | 121 138 76 160 115 50 50 50 40 37 37 37 38 42 149 93 71 53 60 Slowest Speed 550 | 190 190 520 160 160 50 50 50 50 37 37 37 39 550 200 275 300 62 160 Overloaded Moves . | . . . . . . . . . . . . . . . . . . . Propulsion Burnouts . | . . . . . . . . . . . . . . . . . . . Robots Hopped 2 | . . . . . . . . . . . . . 2 . . . . . Potential Cave-ins 12 | . . . . . . . . . . . . . 12 . . . . . Cave-ins Triggered 2 | . . . . . . . . . . . . . 2 . . . . . Exploration Rate (%) 47 | 4 25 27 9 61 87 23 2 14 85 80 70 93 27 70 65 90 47 23 Regions Visited 18 Branch Regions 11 Pre-discovered Areas 2 | . . . . 1 . . . . . . 1 . . . . . . . Known Exits Taken 10 | . . . . . . . . 1 1 1 1 1 1 1 1 1 1 . Unknown Exits Taken 8 | 1 1 1 1 1 1 1 1 . . . . . . . . . . . Scrap Searched 15 | . . . 1 . 1 . . . 2 4 . 3 . 2 1 . 1 . Spaces Dug 70 | . . . . . . 3 . 1 5 . . 7 34 12 . . . 8 Terrain Destroyed 343 | . . 17 . . . 3 . 1 5 . . 77 76 95 . . . 69 Melee 58 | . . . . . . 3 . 1 5 . . 7 34 . . . . 8 Projectile . | . . . . . . . . . . . . . . . . . . . AOE 285 | . . 17 . . . . . . . . . 70 42 95 . . . 61 Terrain Rammed . | . . . . . . . . . . . . . . . . . . . Walls Destroyed . | . . . . . . . . . . . . . . . . . . . Machines Disabled . | . . . . . . . . . . . . . . . . . . . Actions | -11 -10 -9 -9 -9 -8 -8 -7 -6 -6 -6 -6 -5 -5 -5 -5 -5 -4 -4 --------- Run | Yrd Mat Mat Min Exi Min Mat Fac Fac Low Low Dat Pro Fac Upp Upp War Pro Fac Total 9785 | 54 137 230 37 276 472 241 66 572 1081 683 85 1238 1152 455 561 1178 272 995 Wait 803 | . 2 16 1 . . 47 1 32 131 43 . 79 67 105 16 194 8 61 Move 8349 | 45 123 165 35 263 468 187 63 500 928 632 85 1100 982 318 481 912 253 809 Hop 2 | . . . . . . . . . . . . . 2 . . . . . Pick Up 56 | 2 6 7 . 2 . 1 . 8 4 2 . 3 5 3 . 6 . 7 Fast Attach 58 | 6 2 5 1 2 . . 1 3 . . . . 6 2 6 10 1 13 Attach 38 | . . 8 . 1 . 1 . 3 1 1 . 2 6 5 2 2 . 6 Detach 15 | . 2 3 . 2 . . . 1 . . . . 3 . 1 1 . 2 Swap 63 | 1 . 4 . 1 1 . . 5 2 . . 13 8 1 1 5 2 19 Drop 42 | . . 4 . 5 . . 1 9 1 1 . 3 10 . . 3 . 5 Fire 43 | . 2 18 . . . . . . 2 . . 7 3 8 . . . 3 Melee 258 | . . . . . 3 5 . 11 12 4 . 31 51 12 54 3 8 64 Ram . | . . . . . . . . . . . . . . . . . . . Kick . | . . . . . . . . . . . . . . . . . . . Crush . | . . . . . . . . . . . . . . . . . . . Escape Stasis 11 | . . . . . . . . . . . . . 8 . . . . 3 Rewire 44 | . . . . . . . . . . . . . 1 1 . 42 . . Trap 3 | . . . . . . . . . . . . . . . . . . 3 Miscellaneous . | . . . . . . . . . . . . . . . . . . . Route ------- -11/Scrapyard -10/Materials -9/Materials -9/Mines (discovered 2 exits: *Exi / [*Zio]) -9/Exiles -8/Mines -8/Materials -7/Factory -6/Factory (discovered 2 exits: *Fac / *Low) -6/Lower Caves -6/Lower Caves (discovered 2 exits: *Fac / *Dat) -6/Data Miner -5/Proximity Caves -5/Factory -5/Upper Caves -5/Upper Caves (discovered 2 exits: *Fac / *War) -5/Warlord -4/Proximity Caves -4/Factory (discovered 4 exits: *Res x2 / *Upp / Ext) History --------- Turn | Location | Event 26 | -11/Scrapyard | Discovered new exit (range 15) 69 | -11/Scrapyard | Entered Materials 70 | -10/Materials | Met a group of wandering Federalists 246 | -10/Materials | Discovered new exit (range 11) 258 | -10/Materials | Entered another Materials area 258 | -9/Materials | Evolved 2 slots: Propulsion x2 302 | -9/Materials | Build established: Mutant 427 | -9/Materials | Lost 6 parts (4n2w) 449 | -9/Materials | Discovered new exit (range 14) 482 | -9/Materials | Entered Mines 483 | -9/Mines | A Derelict revealed a hidden shortcut to a safe place 533 | -9/Mines | Deemed a non-threat by the Exiles lab entrance 535 | -9/Mines | Discovered new exit (range 5) 537 | -9/Mines | Met a Derelict bent on vengeance 541 | -9/Mines | Entered Exiles 585 | -9/Exiles | Met 8R-AWN 610 | -9/Exiles | Met EX-HEX 681 | -9/Exiles | Met EX-DEC 682 | -9/Exiles | Learned location of Zion (-7) 723 | -9/Exiles | Met EX-BIN 749 | -9/Exiles | Aligned with FarCom system 750 | -9/Exiles | Given EX-Vault access code 792 | -9/Exiles | Opened EX-Vault 798 | -9/Exiles | Found Prototype Flight Unit 798 | -9/Exiles | Identified Flying Fortress v7 807 | -9/Exiles | Found YOLO Cannon 809 | -9/Exiles | Found 0b10 Alert Chip 821 | -9/Exiles | Warned to stay clear of 0b10 Research branches 854 | -9/Exiles | Discovered new exit (range 10) 858 | -9/Exiles | Stole three prototypes: Flying Fortress v7, 0b10 Alert Chip, YOLO Cannon 858 | -9/Exiles | Entered Mines 1088 | -8/Mines | Discovered new exit (range 11) 1102 | -8/Mines | Entered Materials 1102 | -8/Materials | Evolved 2 slots: Propulsion x1, Utility x1 1257 | -8/Materials | Discovered new exit (range 5) 1259 | -8/Materials | Entered Factory 1259 | -7/Factory | Evolved 2 slots: Propulsion x1, Utility x1 1261 | -7/Factory | FarCom data flow suspended 1290 | -7/Factory | Discovered new exit (range 10) 1294 | -7/Factory | Entered another Factory area 1294 | -6/Factory | Evolved 2 slots: Utility x2 1459 | -6/Factory | Found Prototype Launcher 1459 | -6/Factory | Identified Rocket Array 1473 | -6/Factory | Found Hvy. Insulated Plating 1547 | -6/Factory | Discovered new exit (range 7) 1549 | -6/Factory | Identified exit to Factory 1586 | -6/Factory | Discovered new exit (range 4) 1588 | -6/Factory | Identified exit to Lower Caves 1588 | -6/Factory | Entered Lower Caves 1590 | -6/Lower Caves | Encountered a Master Thief 1591 | -6/Lower Caves | YOLO Cannon stolen by Master Thief 1609 | -6/Lower Caves | Learned Factory terminal intel 1709 | -6/Lower Caves | Learned 8 Factory zone layouts 1809 | -6/Lower Caves | Spotted B-75 Beast 2016 | -6/Lower Caves | Learned Factory emergency access door positions 2104 | -6/Lower Caves | Discovered new exit (range 7) 2106 | -6/Lower Caves | Identified exit to Lower Caves 2108 | -6/Lower Caves | Entered another Lower Caves area 2125 | -6/Lower Caves | Spotted B-75 Beast 2155 | -6/Lower Caves | Discovered exit to Factory (range 4) 2379 | -6/Lower Caves | Discovered new exit (range 9) 2399 | -6/Lower Caves | Identified exit to Data Miner 2399 | -6/Lower Caves | Entered Data Miner 2399 | -6/Data Miner | Discovered new exit (range 6) 2407 | -6/Data Miner | Met Data Miner 2414 | -6/Data Miner | Learned location of Section 7 (-3) 2414 | -6/Data Miner | Acquired the access code to Warlord's prototype stash 2421 | -6/Data Miner | Received God Mode back door access code from Data Miner 2431 | -6/Data Miner | Identified exit to Proximity Caves 2431 | -6/Data Miner | Entered Proximity Caves 2443 | -5/Proximity Caves | Learned Factory stockpile data 2561 | -5/Proximity Caves | Learned 12 Factory zone layouts 2583 | -5/Proximity Caves | Ambushed by research squad 2798 | -5/Proximity Caves | Discovered exit to Factory (range 9) 2908 | -5/Proximity Caves | System corruption reached 10% 3047 | -5/Proximity Caves | Entered Factory 3047 | -5/Factory | Evolved 2 slots: Utility x2 3048 | -5/Factory | Identified exit to Upper Caves 3051 | -5/Factory | Loaded intel: 26 terminal locations 3246 | -5/Factory | Crushed by falling debris 3389 | -5/Factory | Build established: Trapper-Gladiator 3501 | -5/Factory | Crushed by falling debris 3501 | -5/Factory | System corruption reached 10% 3622 | -5/Factory | Lost 3 parts (1p1n1u) 3699 | -5/Factory | Entered Upper Caves 3700 | -5/Upper Caves | Nuclear Pulse Array stolen by Master Thief 3701 | -5/Upper Caves | Encountered a Master Thief 3701 | -5/Upper Caves | Encountered a Master Thief 3704 | -5/Upper Caves | Encountered a Master Thief 3706 | -5/Upper Caves | Nuclear Pulse Array stolen by Master Thief 3718 | -5/Upper Caves | Lrn. Tractor Beam stolen by Master Thief 4064 | -5/Upper Caves | Encountered a Warlord checkpoint 4116 | -5/Upper Caves | P-70 Sage assimilated allied RR-IIZ(M) 4171 | -5/Upper Caves | Lost 5 parts (1p3u1w) 4309 | -5/Upper Caves | Learned Factory emergency access door positions 4315 | -5/Upper Caves | Discovered new exit (range 7) 4331 | -5/Upper Caves | Identified exit to Upper Caves 4337 | -5/Upper Caves | Entered another Upper Caves area 4409 | -5/Upper Caves | Entered a destroyed Warlord outpost 4409 | -5/Upper Caves | Discovered new exit (range 11) 4512 | -5/Upper Caves | Learned Factory security intel 4529 | -5/Upper Caves | Identified exit to Factory 4761 | -5/Upper Caves | Lost 6 parts (1p3u2w) 4804 | -5/Upper Caves | Core integrity fell below 50% 4824 | -5/Upper Caves | Learned 8 Factory zone layouts 4842 | -5/Upper Caves | Lost 4 parts (2n2w) 4919 | -5/Upper Caves | Discovered new exit (range 4) 4921 | -5/Upper Caves | Identified exit to Warlord 4922 | -5/Upper Caves | Entered Warlord 4940 | -5/Warlord | System corruption cleaned by Quarantine Array 5005 | -5/Warlord | Build established: Trapper-Mutant 5318 | -5/Warlord | Build established: Commander-Mutant 5350 | -5/Warlord | Opened Warlord's prototype stash 5366 | -5/Warlord | Found Prototype Processor 5366 | -5/Warlord | Identified Exp. Armor Integrity Analyzer 5370 | -5/Warlord | Found Prototype Device 5370 | -5/Warlord | Identified Exp. Cloaking Device 5480 | -5/Warlord | Visited the Vortex Lab 5500 | -5/Warlord | Warlord's base attacked by MAIN.C 5504 | -5/Warlord | Met Warlord 5702 | -5/Warlord | Found Prototype Reactor 5730 | -5/Warlord | Build established: Commander-Gladiator 5802 | -5/Warlord | Warlord forces counterattacked 5834 | -5/Warlord | Spotted Executioner 5843 | -5/Warlord | Spotted Executioner 5844 | -5/Warlord | Discovered new exit (range 9) 5848 | -5/Warlord | Identified exit to Proximity Caves 5848 | -5/Warlord | Entered Proximity Caves 6003 | -4/Proximity Caves | Discovered exit to Factory (range 12) 6009 | -4/Proximity Caves | Entered Factory 6009 | -4/Factory | Evolved 2 slots: Power x1, Weapon x1 6010 | -4/Factory | Identified exit to Research 6010 | -4/Factory | Identified exit to Extension 6010 | -4/Factory | Identified Vortex Chain Reactor 6176 | -4/Factory | Build established: Trapper-Gladiator 6331 | -4/Factory | Discovered new exit (range 11) 6341 | -4/Factory | Identified exit to Upper Caves 6489 | -4/Factory | Lost 8 parts (4n3u1w) 6529 | -4/Factory | Incoming investigation squad redirected 6564 | -4/Factory | Fabricated Imp. Antigrav System? 6565 | -4/Factory | Core integrity fell below 50% 6619 | -4/Factory | Lost 9 parts (1p1n4u3w) 6738 | -4/Factory | Discovered exit to Research (range 12) 6770 | -4/Factory | System corruption reached 10% 6776 | -4/Factory | Core integrity fell below 20% 6798 | -4/Factory | Destroyed by P-70 Sage with Tesla Rifle Last Messages --------------- 06728_ Acquired 1 matter. 06728_ Fabricator unresponsive. 06729_ K-01 Serf collects debris. 06729_ Acquired Mic. Fission Core. 06731_ Fabricator unresponsive. 06733_ K-01 Serf collects debris. 06733_ Acquired 19 matter. 06736_ K-01 Serf collects debris. 06738_ EXIT=FOUND: RESEARCH 06739_ K-01 Serf collects debris. 06760_ Imp. Antigrav System destroyed. 06770_ Lgt. Antimatter Reactor destroyed. 06778_ Myomer Leg destroyed. 06785_ System corrupted: Component data lost. 06786_ Destroyed Antigrav System. 06788_ Myomer Leg destroyed. 06788_ Antigrav System destroyed. 06789_ P-70 Sage destroyed. 06792_ Acquired Imp. Target Analyzer. 06794_ Acquired 10 matter. Map ----- +----------------------------------------------------+ | # !! # ! T#??????????????????????? | | # ! # #??????????????????????? | | # # ^ ##??????????????????????? | | # #^ "" #??????#######??????????? | | # # !!|""" ####??? #??????????? | | # #^* [ " #??? ""#??????????? | | # # |%!"F" #??? Y"#??????????? | | # + [""" #??? ""#??????????? | | # # + #??????????? | | # # ! # """ #??????????? | | # ####+### #??"" #??????????? | | # ## # #???" #??????????? | | # ## # #???#######??????????? | | # ## # #????????????????????? | | # ?# # #????????????????????? | | ?? ?# " # #????????????????????? | | ????####?#["" # #????????????????????? | | ?????????#%!"" # #????????????????????? | | ?????????# "" # ###??????????????????? | | ?????????# # #??????????????????? | | ?????????#= ! %# #??????????????????? | | ?????????# [ # < #??????????????????? | | ?????????#[ [# #??????????????????? | | ?????????####### #??????????????????? | | ?????????????######p#######???????????????? | | ?????????????# !@[ #???????????????? | | ?????????????# | #???????????????? | | ?????????????# #???????????????? | | ?????????????# #???????????????? | | ?????????????# #???????????????? | | ?????????????# #???????????????? | | ?????????????# #???????????????? | | ?????????????# #???????????????? | | ?????????????# = |#???????????????? | | ?????????????# #???????????????? | | ?????????????# #???????????????? | | ?????????????# #???????????????? | | ?????????????##############???????????????? | | ??????????????????????????????????????????? | | ??????????????????????????????????????????? | | ??????????????????????????????????????????? | | ??????????????????????????????????????????? | | ??????????????????????????????????????????? | | ??????????????????????????????????????????? | | ??????????????????????????????????????????? | | ??????????????????????????????????????????? | | ??????????????????????????????????????????? | | ??????????????????????????????????????????? | | | | | +----------------------------------------------------+ Best States ------------- Heat Dissipation 43 Energy Generation 55 Energy Capacity 700 Matter Stores 300 Matter Capacity 300 Sight Range 16 Robot Scan Range 16 Terrain Scan Density 10 Cloak Strength 4 Power Amplification 20 Additional Mass Support 9 Armor Coverage 600 Resistance: KI 10 Resistance: EM 30 Core Shielding 30 Melee Speed Boost 40 Phase Shifting 10 Evasion (%) 72 Melee Accuracy 6 Target Analysis 8 Armor Integrity Analysis 50 Recoil Reduction 1 Trap Extractor Capacity 8 Item Schematics ----------------- Combat Drone Bay | -6/Data Miner | Free Lgt. Regenerative Plating | -6/Data Miner | Free Cld. Gravmag System | -6/Data Miner | Free Prc. Energy Filter | -6/Data Miner | Free Mni. Smartbomb Launcher | -6/Data Miner | Free Imp. Antigrav System | -6/Data Miner | Free Quantum Capacitor | -6/Data Miner | Free Micro-nuke Launcher | -6/Data Miner | Free Robot Schematics ------------------ A-15 Conveyor | -6/Data Miner | Free R-10 Processor | -6/Data Miner | Free M-36 Artificer | -6/Data Miner | Free S-27 Virus | -6/Data Miner | Free Y-64 Sentinel | -6/Data Miner | Free B-60 Warrior | -6/Data Miner | Free L-41 Fighter | -6/Data Miner | Free E-15 Imp | -6/Data Miner | Free Fabricated ------------ Imp. Antigrav System | x2 | -4/Factory Repaired ---------- Nothing Studied --------- None Alien Tech Used ----------------- None Achievements -------------- Consequences Morally Flexible Challenges ------------ None Game ------ Seed PiercingFlakDirector Manual? 0 Play Time 01:17:43 Cumulative 217.3 hours Start 2026.06.29 @ 11:38:00 End 2026.06.30 @ 01:22:16 Sessions 4 Manual Loads 0 Difficulty Rogue Special Mode None Game No. 363 Rogue 363 Adventurer 0 Explorer 0 Win Type - Total 2 Types 2/0/0/0/0/0/0/0/0/0 Lore% 64 Gallery% 61 Achievement% 48 Wizard Run 0 Options --------- Layout 2 ASCII 0 Keyboard 1 Movement Numpad Keybinds 0 Fullscreen 1 Font 20/SmallcapsGlow Map View 64x51 Zoom Use 0% Tactical HUD 1 Map Filters NONE Filters NONE Steam 1 RUN: 75fa40e4-4449-4921-b065-5bca7736af11